[Event "FIDE WY-U16 Olympiad 2022"]
[Site "Nakhchivan"]
[Date "2022.10.06"]
[Round "5.19"]
[White "Yavuz, Efe Metehan"]
[Black "Kirtadze, Anastasia"]
[Result "1-0"]
[ECO "A05"]
[WhiteElo "2223"]
[BlackElo "1814"]
[Annotator "TA"]
[PlyCount "143"]
[EventDate "2022.10.02"]
[EventType "team-tourn"]
[EventCountry "AZE"]
[SourceTitle "playchess.com"]
[Source "ChessBase"]
[SourceQuality "1"]
[WhiteTeam "Turkey"]
[BlackTeam "Georgia"]
[WhiteTeamCountry "TUR"]
[BlackTeamCountry "GEO"]
[TimeControl "40/5400+30:1800+30"]

{[%evp 20,143,21,21,26,29,36,18,26,19,22,14,32,29,61,16,22,18,11,22,22,0,0,0,28,0,0,-102,-97,-330,-344,-316,-333,-324,-104,-331,-303,-433,-440,-435,-426,-413,0,0,0,0,0,0,0,0,0,0,0,0,0,0,0,0,0,0,0,0,0,0,0,0,0,0,0,0,0,0,0,0,0,0,0,0,558,554,464,566,562,533,539,556,536,524,460,453,620,436,757,685,462,240,240,240,805,724,644,505,302,249,1354,1340,1622,1207,12837,12837,12835,0,16,0,623,12829,12847,12847,12848,12845,12847,12847,12850,12850,27999,27999]} 1. Nf3 {[%emt 0:00:14]} Nf6 {[%emt 0:00:58]} 2. b3 {[%emt 0:00:58]} c5 {[%emt 0:05:23]} 3. Bb2 {[%emt 0:00:13]} Nc6 {[%emt 0:01:17]} 4. e3 {[%emt 0:00:26]} e6 {[%emt 0:02:33]} 5. Be2 {[%emt 0:02:14]} Be7 {[%emt 0:00:44]} 6. O-O {[%emt 0:01:07]} O-O {[%emt 0:00:23]} 7. d4 {[%emt 0:03:13]} b6 {[%emt 0:04:25]} 8. c4 {[%emt 0:02:06]} cxd4 {[%emt 0:04:54]} 9. Nxd4 {[%emt 0:00:25]} Nxd4 {[%emt 0:05:28]} (9... Bb7) 10. Qxd4 {[%emt 0:01:13]} Bb7 {[%emt 0:00:38]} 11. Nc3 {[%emt 0:03:26]} Bc6 {[%emt 0:13:04] A30: Symmetrical English: Double Fianchetto and Hedgehog.} 12. Rfd1 {[%emt 0:16:56]} Qc7 {[%emt 0:04:19]} 13. a3 {[%emt 0:16:39]} Qb7 {[%emt 0:12:35] The position is equal.} 14. Bf1 {[%emt 0:01:15]} a5 {[%emt 0:02:56] [#]} 15. Qf4 $146 {[%emt 0:12:26]} ({Predecessor:} 15. Rd2 Rfd8 16. Rad1 Bf8 17. Qh4 h6 18. Qg3 Qb8 19. Be2 Qxg3 20. hxg3 Rdc8 21. Bf3 {½-½ (57) Badea,B (2492)-Barnaure,V (2416) Bucharest 2006}) 15... d6 {[%emt 0:10:13]} 16. Qg3 {[%emt 0:00:56]} e5 {[%emt 0:05:17]} 17. Be2 {[%emt 0:08:02]} Ne4 {[%emt 0:02:49]} 18. Nxe4 {[%emt 0:00:26]} Bxe4 {[%emt 0:00:01]} 19. a4 {[%emt 0:04:37]} f5 {[%emt 0:01:15]} 20. Bf3 {[%emt 0:09:48]} (20. f3 $5 {[%cal Rf3e4]} Bc6 21. Qf2 $11) 20... Rf6 {[%emt 0:01:59]} 21. Bxe4 {[%emt 0:01:44]} fxe4 {[%emt 0:00:54]} 22. Rd5 {[%emt 0:01:30] Threatens to win with Qg4.} Raf8 {[%emt 0:01:11]} 23. Rf1 {[%emt 0:01:15]} (23. Qg4 $11 {remains equal.}) 23... Qc8 $1 $17 {[%emt 0:02:39]} 24. h3 $2 {[%emt 0:05:25]} (24. Qh4 $17 {was called for.} Qf5 25. Qh3) 24... Rg6 $19 {[%emt 0:02:04]} 25. Qh2 {[%emt 0:00:01]} Rf3 {[%emt 0:00:44]} 26. Kh1 {[%emt 0:01:04] [#]} Rh6 $2 {[%emt 0:04:56]} 27. Kg1 $2 {[%emt 0:00:07]} (27. gxf3 $2 exf3 28. Bxe5 Rxh3 $19) (27. Rb5 $17 {was the only defense.}) 27... Qf5 $1 {[%emt 0:02:35]} 28. Bxe5 {[%emt 0:00:51]} (28. Ba3 {is a better defense.}) 28... dxe5 {[%emt 0:00:28]} 29. Qxe5 {[%emt 0:00:36] [#]} Rfxh3 $1 {[%emt 0:07:06][%mdl 512]} 30. gxh3 {[%emt 0:00:19]} (30. Qxf5 $2 Rh1#) 30... Qxh3 {[%emt 0:00:08]} (30... Rg6+ $1 $19 31. Kh2 Qxe5+ 32. Rxe5 Bd6) 31. Rd8+ $1 $11 {[%emt 0:00:20]} Kf7 {[%emt 0:00:16][%csl Gh6][%cal Rh3h1]} 32. Qd5+ {[%emt 0:00:32]} Re6 {[%emt 0:01:34]} 33. Rd7 {[%emt 0:02:38]} Ke8 {[%emt 0:00:32]} 34. Rxe7+ $1 {[%emt 0:00:23]} Kxe7 {[%emt 0:00:24][%mdl 4096] Endgame KQR-KQR} 35. Qb7+ $1 {[%emt 0:00:02]} ({Don't blunder} 35. Qg5+ $2 Ke8 36. Rd1 Rg6 37. Rd8+ Kf7 38. Qxg6+ hxg6 $19) 35... Ke8 {[%emt 0:00:42][%cal Re6g6]} 36. Qc8+ {[%emt 0:00:08]} Ke7 {[%emt 0:00:27]} 37. Qc7+ {[%emt 0:00:01]} Ke8 {[%emt 0:00:33][%cal Be7e8,Be8f7,Bf7f6,Bf6f5,Bf5g4][%mdl 32] Hoping for ...Rg6+.} 38. Qc8+ {[%emt 0:00:02]} Kf7 {[%emt 0:00:23] ( -> ...Rg6+)} 39. Qc7+ {[%emt 0:00:06]} Kf6 {[%emt 0:00:39]} 40. Qf4+ {[%emt 0:00:09]} Qf5 {[%emt 0:00:28]} 41. Qxf5+ {[%emt 0:30:27]} Kxf5 {[%emt 0:30:01] KR-KR} 42. Rd1 {[%emt 0:00:06]} Rg6+ {[%emt 0:00:00]} 43. Kh2 {[%emt 0:00:00]} Kg4 {[%emt 0:00:00] And now ...Kf3 would win.} 44. Kg2 {[%emt 0:00:00]} h5 {[%emt 0:00:00] White must now prevent ...h4.} 45. Rd4 {[%emt 0:00:00]} Re6 {[%emt 0:00:00]} 46. f3+ $1 {[%emt 0:00:00]} Kf5 {[%emt 0:00:00]} 47. Rd5+ {[%emt 0:00:00]} Re5 {[%emt 0:00:00]} 48. Rd6 {[%emt 0:00:00]} h4 $2 {[%emt 0:00:00][%mdl 8192]} (48... exf3+ $11 {and Black stays safe.} 49. Kxf3 Re6 50. Rd5+ Kg6) 49. f4 $1 $18 {[%emt 0:00:00]} Re8 {[%emt 0:00:00]} 50. Rxb6 {[%emt 0:00:00]} Rd8 {[%emt 0:00:28]} 51. Rb5+ {[%emt 0:00:00]} Kf6 {[%emt 0:00:25]} 52. Kh3 {[%emt 0:00:00]} ({Not} 52. Rxa5 Rd3 $16) 52... Rd3 {[%emt 0:00:25]} 53. Kxh4 {[%emt 0:00:00]} Rxe3 {[%emt 0:00:09]} 54. Kg4 {[%emt 0:00:00]} Rc3 {[%emt 0:01:20]} 55. Rf5+ {[%emt 0:00:46]} Kg6 {[%emt 0:00:14]} (55... Ke6 $142 56. Rxa5 Rxb3 57. Ra6+ (57. Re5+ Kf7 $16) 57... Ke7 58. Ra7+ Kf6) 56. Rxa5 {[%emt 0:00:56]} Rxb3 {[%emt 0:01:11]} 57. Rb5 {[%emt 0:02:33] Prevents Rb4.} (57. f5+ $142 Kf6 58. Kf4) 57... Rc3 {[%emt 0:00:46]} 58. Rc5 {[%emt 0:03:06]} Kf6 $2 {[%emt 0:00:59]} (58... Rf3 59. a5 Rf1 60. Rg5+ Kf6) 59. Rc6+ {[%emt 0:01:00]} Ke7 {[%emt 0:00:50]} 60. a5 $1 {[%emt 0:03:34]} Kd7 {[%emt 0:00:32] [#]} 61. Rc5 $1 {[%emt 0:01:43] aiming for a6.} Kd6 $2 {[%emt 0:01:32] [#]} (61... Rc1 62. f5 Kd6 63. Rd5+ Kc7) 62. Rd5+ $1 {[%emt 0:00:01]} Kc6 {[%emt 0:00:28]} 63. Rd4 {[%emt 0:00:02]} Re3 {[%emt 0:00:58]} 64. Kf5 {[%emt 0:01:10]} Ra3 {[%emt 0:01:37]} 65. Kg6 $2 {[%emt 0:01:56]} ({White must play} 65. Rxe4 $18 Rxa5+ 66. Kg6) 65... Rg3+ $1 $11 {[%emt 0:00:31]} 66. Kf5 $2 {[%emt 0:00:13][%mdl 8192]} (66. Kh5 $11 g6+ 67. Kh4) 66... Ra3 $1 $18 {[%emt 0:00:31]} 67. Rxe4 {[%emt 0:00:29]} Rxa5+ {[%emt 0:00:03]} 68. Kg6 {[%emt 0:00:01]} Ra7 {[%emt 0:00:12]} 69. f5 {[%emt 0:00:48][%cal Bf4f5,Bf5f6][%mdl 32]} Kc5 {[%emt 0:00:17]} 70. Rh4 {[%emt 0:00:15]} Rd7 {[%emt 0:00:42]} 71. Rh7 {[%emt 0:00:44]} Kxc4 {[%emt 0:00:05]} 72. f6 {[%emt 0:00:37] What a bad dream for Black.  Weighted Error Value: White=0.22 (precise) /Black=0.30} 1-0